bitfinex-derivatives/quotes_SOLF0:USTF0_20240908
["timestamp","ask_amount","ask_price","bid_price","bid_amount"]
[1725805988960,3.9132645,127.91,127.82,3.1295]
[1725805989165,3.1288,127.85,127.81,21.0]
[1725805989360,3.1288,127.85,127.82,1.4027]
[1725805989564,44.47,127.91,127.83,3.89762239]
[1725805989762,44.47,127.91,127.82,1.4027]
[1725805990163,44.47,127.91,127.76,2.5988]
[1725805990164,21.0,127.91,127.83,3.86137839]
[1725805990378,21.0,127.89,127.82,3.96581397]
[1725805990583,21.0,127.89,127.8,21.0]
[1725805991165,21.0,127.89,127.8,24.92005006]
[1725805991767,21.0,127.89,127.8,28.04985006]
[1725805992173,23.47,127.94,127.82,21.0]
[1725805992476,21.0,127.91,127.82,21.0]
[1725805992973,3.1285,127.86,127.82,21.0]
[1725805993580,3.1285,127.86,127.82,24.1294]
[1725805993763,3.1285,127.86,127.8,3.92005006]
[1725805993764,3.97441915,127.94,127.85,21.0]
[1725805994077,22.3244,127.95,127.85,21.0]
[1725805994265,3.128,127.89,127.85,21.0]
[1725805994462,21.0,127.94,127.85,21.0]
[1725805994870,3.1282,127.88,127.85,21.0]
[1725805998182,23.47,127.93,127.85,21.0]
[1725805999372,23.47,127.91,127.84,21.0]
[1725805999777,3.1284,127.87,127.84,21.0]
[1725806000181,3.1281,127.88,127.84,21.0]
[1725806002478,3.1284,127.87,127.84,21.0]
[1725806003291,3.1286,127.86,127.84,21.0]
[1725806004085,44.47,127.91,127.83,1.355]
[1725806004876,3.1287,127.86,127.83,1.355]
[1725806006686,23.47,127.88,127.78,3.1303]
[1725806006893,5.19427582,127.87,127.79,21.0]
[1725806007098,5.19427582,127.87,127.79,24.83733667]
[1725806007295,49.66427582,127.87,127.79,24.83733667]
[1725806008986,45.7753,127.87,127.79,24.83733667]
[1725806009584,49.59933567,127.87,127.79,24.83733667]
[1725806009788,3.1297,127.82,127.79,24.83733667]
[1725806010492,49.59933567,127.87,127.79,27.96753667]
[1725806010493,3.1293,127.83,127.79,27.96753667]
[1725806010883,3.1293,127.83,127.79,24.83733667]
[1725806011598,3.1291,127.84,127.79,24.83733667]
[1725806011785,21.0,127.89,127.81,21.0]
[1725806012491,21.0,127.89,127.82,3.93388106]
[1725806012987,3.1289,127.85,127.82,3.93388106]
[1725806015398,3.129,127.84,127.82,3.93388106]
[1725806015986,21.0,127.89,127.82,3.93388106]
[1725806017399,3.1289,127.85,127.82,3.93388106]
[1725806019220,24.8277,127.93,127.83,21.0]
[1725806019392,45.8277,127.93,127.83,21.0]
[1725806019703,3.1282,127.88,127.84,1.2704]
[1725806019892,49.76244688,127.93,127.84,22.2704]
[1725806020593,3.128,127.88,127.84,25.3993]
[1725806020794,228.0,127.94,127.86,21.0]
[1725806020995,21.0,127.97,127.89,21.0]
[1725806021194,22.3113,127.99,127.9,21.0]
[1725806021398,22.3113,127.99,127.9,24.98976063]
[1725806021896,21.0,128.01,127.92,21.0]
[1725806022092,158.73874272,128.0,127.92,21.0]
[1725806022292,3.1259,127.97,127.92,21.0]
[1725806022499,3.1259,127.97,127.92,24.89744852]
[1725806022813,158.73874272,128.0,127.92,24.89744852]
[1725806023192,158.73874272,128.0,127.94,21.0]
[1725806023496,3.1254,127.99,127.94,21.0]
[1725806023699,158.73874272,128.0,127.93,1.2825]
[1725806024097,3.1256,127.98,127.93,1.2825]
[1725806024409,158.73874272,128.0,127.93,1.2825]
[1725806024789,3.1259,127.97,127.93,1.2825]
[1725806027404,3.1261,127.96,127.93,1.2825]
[1725806027697,22.3832,128.01,127.93,1.2825]
[1725806027895,3.1262,127.96,127.93,1.2825]
[1725806031008,22.3832,128.01,127.94,21.0]
[1725806031009,1.3832,128.01,127.94,21.0]
[1725806032402,3.1258,127.98,127.94,21.0]
[1725806034101,3.1254,127.99,127.95,21.0]
[1725806036393,3.1253,128.0,127.97,21.0]
[1725806036599,24.8752,128.06,127.97,21.0]
[1725806036600,26.3497132,128.06,127.97,21.0]
[1725806037099,26.3497132,128.06,127.99,21.0]
[1725806037300,49.8197132,128.06,127.98,1.2857]
[1725806037497,3.1253,128.0,127.98,1.2857]
[1725806039699,21.0,128.03,127.94,24.1265]
[1725806040000,21.0,128.03,127.94,22.3669]
[1725806040001,21.0,128.01,127.94,22.3669]
[1725806040196,3.1262,127.96,127.94,1.3669]
[1725806041099,21.0,127.99,127.92,3.89744852]
[1725806041307,21.0,127.99,127.91,22.404]
[1725806041607,3.1264,127.95,127.91,29.50293397]
[1725806041793,3.1264,127.95,127.92,21.0]
[1725806041994,3.126,127.97,127.94,21.0]
[1725806043509,3.1262,127.96,127.94,21.0]
[1725806044195,3.1263,127.95,127.94,21.0]
[1725806044805,3.1263,127.95,127.92,21.0]
[1725806045006,21.0,128.01,127.92,21.0]
[1725806045007,3.1266,127.94,127.92,21.0]
[1725806045199,3.1266,127.94,127.91,5.37563397]
[1725806045604,3.1266,127.94,127.92,21.0]
[1725806049212,3.1264,127.95,127.92,21.0]
[1725806049420,3.1264,127.95,127.92,24.127]
[1725806050219,165.00095195,128.03,127.94,21.0]
[1725806050408,186.00095195,128.03,127.94,21.0]
[1725806051420,3.1262,127.96,127.94,21.0]
[1725806052327,3.126,127.97,127.94,21.0]
[1725806052729,3.126,127.97,127.94,22.2849]
[1725806054224,141.53095195,128.03,127.96,8.4]
[1725806054529,149.93095195,128.03,127.97,8.4]
[1725806057430,3.1254,127.99,127.97,8.4]
[1725806057622,3.1254,127.99,127.98,8.4]
[1725806057824,141.53095195,128.03,127.98,8.4]
[1725806058020,141.53095195,128.03,127.99,3.94286728]
[1725806058323,141.53095195,128.03,128.0,8.4]
[1725806059227,3.1249,128.01,128.0,8.4]
[1725806062231,3.1249,128.01,128.0,7.4]
[1725806064131,149.93095195,128.03,127.97,8.4]
[1725806064932,3.1256,127.99,127.97,8.4]
[1725806067333,149.93095195,128.03,127.97,8.4]
[1725806067834,8.4,128.01,127.94,1.2849]
[1725806068033,8.4,128.01,127.95,8.4]
[1725806068331,3.126,127.97,127.95,8.4]
[1725806069231,3.126,127.97,127.96,8.4]
[1725806069835,8.4,128.01,127.95,8.4]
[1725806070937,165.00095195,128.03,127.95,8.4]
[1725806071123,8.4,128.0,127.95,8.4]
[1725806072833,3.1261,127.96,127.95,8.4]
[1725806073634,3.1259,127.97,127.95,8.4]
[1725806074338,141.53095195,128.03,127.96,8.4]
[1725806074646,8.4,128.07,128.01,8.4]
[1725806074829,3.1246,128.02,128.01,8.4]
[1725806075241,3.1245,128.03,128.01,8.4]
[1725806075434,3.1245,128.03,128.02,8.4]
[1725806076942,3.1241,128.04,128.02,8.4]
[1725806079241,768.6536795,128.08,128.03,8.4]
[1725806079447,8.4,128.11,128.05,8.4]
[1725806079644,8.4,128.11,128.06,8.4]
[1725806080237,3.1236,128.07,128.05,20.98]
[1725806080441,22.3096,128.13,128.05,20.98]
[1725806080641,3.1236,128.07,128.05,20.98]
[1725806080834,22.3096,128.13,128.05,20.98]
[1725806081438,20.98,128.11,128.03,20.98]
[1725806082242,3.1241,128.05,128.03,20.98]
[1725806082439,20.98,128.11,128.03,20.98]
[1725806082748,20.98,128.09,128.01,20.98]
[1725806083250,3.85573193,128.08,128.01,20.98]
[1725806084246,20.98,128.09,128.01,20.98]
[1725806084454,3.1243,128.04,128.01,20.98]
[1725806088371,3.124,128.05,128.03,20.98]
[1725806089048,3.1241,128.04,128.03,20.98]
[1725806092757,3.1241,128.04,128.02,20.98]
[1725806097166,3.1241,128.04,128.03,20.98]
[1725806102159,3.1241,128.04,128.03,8.39]
[1725806103360,8.39,128.1,128.03,8.39]
[1725806103666,8.39,128.1,128.05,8.39]
[1725806104457,3.1236,128.06,128.05,8.39]
[1725806106468,3.1241,128.04,128.0,4.4383]
[1725806108665,3.1244,128.03,128.0,4.4383]
[1725806108860,8.39,128.1,128.02,8.39]
[1725806109056,8.39,128.1,128.05,8.39]
[1725806109463,3.1236,128.06,128.05,8.39]
[1725806112473,8.39,128.09,128.0,1.3132]
[1725806112664,8.39,128.06,127.99,14.92350369]
[1725806112864,8.39,128.04,127.92,1.3917]
[1725806113067,3.1258,127.98,127.96,8.39]
[1725806115367,3.1258,127.98,127.97,8.39]
[1725806115669,3.1254,127.99,127.97,8.39]
[1725806115865,8.39,128.03,127.97,8.39]
[1725806116057,3.1255,127.99,127.97,8.39]
[1725806117371,8.39,128.02,127.92,4.0119]
[1725806117572,8.39,128.0,127.94,8.39]
[1725806117770,1.2735,128.02,127.93,8.39]
[1725806117771,3.1265,127.95,127.93,8.39]
[1725806118666,12.28340418,127.99,127.93,8.39]
[1725806118869,12.28340418,127.99,127.92,2.6202]
[1725806119071,8.39,128.0,127.94,8.39]
[1725806119371,3.1265,127.95,127.93,8.39]
[1725806123668,3.1265,127.95,127.94,8.39]
[1725806125575,3.1265,127.95,127.93,8.39]
[1725806128278,3.1265,127.95,127.92,2.6202]
[1725806128279,3.1265,127.95,127.94,8.39]
[1725806128479,3.1262,127.96,127.94,8.39]
[1725806128684,1.342,128.0,127.95,8.39]
[1725806128984,9.6635,128.02,127.97,8.39]
[1725806128985,3.1256,127.98,127.97,8.39]
[1725806132585,3.126,127.97,127.95,8.39]
[1725806132782,9.6635,128.02,127.92,2.6202]
[1725806132783,12.33599405,127.99,127.92,2.6202]
[1725806132980,12.33599405,127.99,127.93,8.39]
[1725806132981,8.39,127.99,127.93,8.39]
[1725806133177,3.1262,127.96,127.93,8.39]
[1725806133780,3.1264,127.95,127.93,8.39]
[1725806136381,12.37178549,127.99,127.91,5.36953397]
[1725806136579,12.37178549,127.99,127.92,8.39]
[1725806136780,12.37178549,127.99,127.94,8.39]
[1725806137279,8.39,127.99,127.94,8.39]
[1725806137988,12.25578597,127.99,127.94,8.39]
[1725806138398,3.1265,127.95,127.94,8.39]
[1725806155406,9.6635,128.02,127.94,8.39]
[1725806155613,9.6635,128.02,127.96,8.39]
[1725806156202,3.1261,127.97,127.96,8.39]
[1725806160316,9.6635,128.02,127.91,7.92343397]
[1725806160317,8.39,128.0,127.91,11.05063397]
[1725806160520,8.39,128.0,127.91,7.92343397]
[1725806160818,3.1265,127.95,127.93,8.39]
[1725806161413,3.1271,127.92,127.91,5.25173397]
[1725806161613,12.29995087,127.98,127.91,13.64173397]
[1725806161814,8.39,127.98,127.91,13.64173397]
[1725806162316,3.86382728,127.97,127.91,13.64173397]
[1725806163312,3.1269,127.93,127.91,13.64173397]
[1725806165710,3.1267,127.94,127.92,8.39]
[1725806169622,35.69511101,127.98,127.91,13.64173397]
[1725806170319,3.127,127.93,127.91,13.64173397]
[1725806170722,3.1266,127.94,127.91,13.64173397]
[1725806170920,3.87842064,127.99,127.93,8.39]
[1725806171114,1.2735,128.02,127.97,8.39]
[1725806172817,1.3857,128.05,127.99,8.39]
[1725806173014,1.3857,128.05,128.0,8.39]
[1725806175327,3.1249,128.01,128.0,8.39]
[1725806176927,3.1247,128.02,128.0,8.39]
[1725806177126,1.3857,128.05,128.0,8.39]
[1725806178424,3.1249,128.01,128.0,8.39]
[1725806182432,8.39,128.05,127.99,8.39]
[1725806182933,31.86,128.05,127.99,8.39]
[1725806183536,8.39,128.03,127.98,8.39]
[1725806183719,31.86,128.03,127.97,9.7333]
[1725806184434,8.39,128.02,127.97,8.39]
[1725806186438,3.1256,127.98,127.97,8.39]
[1725806189132,3.1254,127.99,127.97,8.39]
[1725806190735,3.1254,127.99,127.98,8.39]
[1725806192829,31.86,128.02,127.93,4.4779]
[1725806193035,31.86,128.02,127.95,8.39]
[1725806193329,31.86,128.01,127.95,8.39]
[1725806193534,3.1261,127.96,127.95,8.39]
[1725806194440,31.86,128.01,127.95,8.39]
[1725806194441,3.1259,127.97,127.95,8.39]
[1725806194636,3.1259,127.97,127.96,8.39]
[1725806203339,31.86,128.01,127.93,1.3511]
[1725806203643,1.3999,128.02,127.93,9.7411]
[1725806203644,31.86,127.99,127.93,9.7411]
[1725806203834,3.84507152,127.98,127.93,9.7411]
[1725806204040,3.84507152,127.98,127.93,1.3511]
[1725806204539,3.1266,127.94,127.93,1.3511]
[1725806207144,8.39,127.95,127.78,3.61089572]
[1725806207344,8.39,127.95,127.89,8.39]
[1725806207551,12.38116635,127.95,127.89,12.32136335]
[1725806207744,3.1275,127.91,127.89,12.32136335]
[1725806210242,3.1275,127.91,127.9,8.39]
[1725806216550,3.1271,127.92,127.9,8.39]
[1725806216742,28.73381178,127.97,127.92,8.39]
[1725806216943,28.73381178,127.97,127.9,1.3957]
[1725806217144,37.12381178,127.97,127.91,8.39]
[1725806217356,3.1271,127.92,127.91,8.39]
[1725806220649,31.86,127.97,127.9,1.3957]
[1725806220650,31.86,127.96,127.9,9.7857]
[1725806221246,3.1272,127.92,127.9,9.7857]
[1725806222857,3.94002189,127.98,127.87,3.1282]
[1725806222858,31.86,127.93,127.87,8.39]
[1725806223059,31.86,127.93,127.87,12.31164529]
[1725806223456,3.128,127.89,127.87,12.31164529]
[1725806224157,35.73824522,127.93,127.87,12.31164529]
[1725806224362,35.73824522,127.93,127.87,8.39]
[1725806224761,3.128,127.89,127.87,12.30513531]
[1725806224956,3.128,127.89,127.87,8.39]
[1725806225168,35.73824522,127.93,127.87,8.39]
[1725806227753,3.128,127.88,127.87,8.39]
[1725806227958,23.47,127.91,127.76,3.9243277]
[1725806228161,31.86,127.9,127.84,8.39]
[1725806228360,31.86,127.9,127.84,12.3052202]
[1725806228560,3.1285,127.87,127.84,12.3052202]
[1725806228862,31.86,127.9,127.84,8.39]
[1725806229066,35.7513636,127.9,127.84,12.30678456]
[1725806229366,31.86,127.9,127.84,12.30678456]
[1725806230358,31.86,127.9,127.84,8.39]
[1725806231168,3.1288,127.85,127.84,8.39]
[1725806234868,3.1288,127.85,127.83,5.20501164]
[1725806235080,3.1288,127.85,127.83,13.59501164]
[1725806235365,3.129,127.84,127.83,5.20501164]
[1725806235566,3.129,127.84,127.83,13.59501164]
[1725806236475,3.129,127.84,127.83,9.7086]
[1725806238669,3.1293,127.83,127.82,8.39]
[1725806238878,31.86,127.87,127.81,3.98107553]
[1725806239179,31.86,127.87,127.81,8.39]
[1725806239381,3.1295,127.82,127.81,8.39]
[1725806239876,3.1294,127.83,127.81,8.39]
[1725806240076,3.81404013,127.89,127.82,8.39]
[1725806240377,23.47,127.9,127.84,8.39]
[1725806240572,27.35106416,127.9,127.84,8.39]
[1725806240874,162.22775333,127.91,127.86,8.39]
[1725806241263,162.22775333,127.91,127.87,8.39]
[1725806241468,3.1279,127.89,127.87,8.39]
[1725806243875,162.22775333,127.91,127.86,8.39]
[1725806244473,162.22775333,127.91,127.85,5.16918388]
[1725806244680,162.22775333,127.91,127.86,8.39]
[1725806245378,3.1277,127.9,127.86,8.39]
[1725806245579,162.22775333,127.91,127.86,8.39]
[1725806245977,3.1279,127.89,127.86,8.39]
[1725806247474,3.1276,127.9,127.87,8.39]
[1725806247673,2.7335,127.97,127.88,8.39]
[1725806247874,2.7335,127.97,127.9,8.39]
[1725806248070,8.39,127.96,127.9,8.39]
[1725806248775,8.39,127.96,127.87,3.1282]
[1725806248776,2.7335,127.97,127.91,8.39]
[1725806248980,2.7335,127.97,127.92,8.39]
[1725806249381,3.1267,127.94,127.92,8.39]
[1725806251272,156.62503795,127.99,127.93,8.39]
[1725806251479,156.62503795,127.99,127.95,8.39]
[1725806251874,3.1259,127.97,127.95,8.39]
[1725806252478,3.1259,127.97,127.92,4.00532698]
[1725806252685,3.1259,127.97,127.94,8.39]
[1725806252881,3.1259,127.97,127.94,12.33667238]
[1725806253690,3.1262,127.96,127.91,4.5214]
[1725806253986,3.1262,127.96,127.91,12.9114]
[1725806254375,3.1264,127.95,127.91,9.7842]
[1725806254578,3.1264,127.95,127.92,3.89227642]
[1725806254886,3.1264,127.95,127.91,9.7842]
[1725806255584,3.1264,127.95,127.93,8.39]
[1725806255786,3.1264,127.95,127.93,12.27836772]
[1725806260285,3.1264,127.95,127.94,8.39]
[1725806260983,31.86,127.98,127.9,2.6878]
[1725806261181,31.86,127.98,127.91,8.39]
[1725806261383,31.86,127.98,127.92,3.98835118]
[1725806261581,3.126,127.97,127.92,3.98835118]
[1725806261788,31.86,127.98,127.92,3.98835118]
[1725806262485,3.1265,127.95,127.92,12.37835118]
[1725806265388,156.62503795,127.99,127.94,8.39]
[1725806265686,156.62503795,127.99,127.95,8.39]
[1725806266090,156.62503795,127.99,127.91,4.4331]
[1725806266291,156.62503795,127.99,127.94,8.39]
[1725806266490,156.62503795,127.99,127.94,12.34442464]
[1725806267287,3.1262,127.96,127.94,12.34442464]
[1725806270594,2.7944,128.02,127.94,12.34442464]
[1725806270784,27.34415556,128.03,127.98,8.39]
[1725806271013,23.47,128.03,127.98,8.39]
[1725806272993,8.39,128.04,127.98,8.39]
[1725806273194,23.47,128.02,127.96,3.89227642]
[1725806273497,31.86,128.01,127.96,12.28227642]
[1725806274093,8.39,128.01,127.96,12.28227642]
[1725806275395,3.1255,127.99,127.96,12.28227642]
[1725806275996,3.1255,127.99,127.97,8.39]
[1725806277595,3.1255,127.99,127.98,8.39]
[1725806280697,3.1255,127.99,127.97,8.39]
[1725806284509,8.39,128.01,127.91,1.3059]
[1725806284703,24.8583,128.03,127.93,8.39]
[1725806284704,31.85,128.0,127.93,8.39]
[1725806284907,31.85,128.0,127.93,12.20602707]
[1725806285112,3.1262,127.96,127.93,12.20602707]
[1725806287009,31.85,128.01,127.95,8.39]
[1725806287208,31.85,128.01,127.96,8.39]
[1725806287597,8.39,128.01,127.96,8.39]
[1725806287798,1.2739,128.02,127.96,8.39]
[1725806289298,3.1258,127.98,127.96,8.39]
[1725806289806,1.2739,128.02,127.96,8.39]
[1725806291304,3.1258,127.97,127.96,8.39]
[1725806293210,3.1258,127.97,127.95,8.39]
[1725806294010,3.1258,127.97,127.95,12.32535793]
[1725806295215,3.1258,127.97,127.95,8.39]
[1725806295602,3.1258,127.97,127.95,12.28275224]
[1725806295806,31.85,128.01,127.92,1.3424]
[1725806296009,1.2739,128.02,127.93,8.39]
[1725806296010,31.85,128.0,127.93,8.39]
[1725806297412,3.1262,127.96,127.93,8.39]
[1725806298615,3.1265,127.95,127.93,8.39]
[1725806298916,35.84906198,127.97,127.91,2.603]
[1725806299221,3.1271,127.92,127.91,1.2971]
[1725806299430,3.1271,127.92,127.9,8.39]
[1725806303125,3.1269,127.93,127.91,8.39]
[1725806303422,3.1269,127.93,127.92,8.39]
[1725806309628,3.1269,127.93,127.92,12.33253651]
[1725806309831,27.44163346,127.98,127.92,12.33253651]
[1725806310024,3.98163346,127.98,127.92,12.33253651]
[1725806310624,3.1267,127.94,127.92,12.33253651]
[1725806312326,3.1264,127.95,127.92,12.33253651]
[1725806312525,3.1264,127.95,127.94,8.39]
[1725806317025,3.1261,127.96,127.94,8.39]
[1725806317229,31.85,128.0,127.94,8.39]
[1725806318127,3.1264,127.95,127.93,8.39]
[1725806319434,21.88974424,128.01,127.94,8.39]
[1725806319632,33.1239,128.02,127.96,8.39]
[1725806320244,3.1258,127.97,127.96,8.39]
[1725806322430,3.1257,127.98,127.96,8.39]
[1725806324744,3.1255,127.99,127.97,8.39]
[1725806325531,8.39,128.03,127.97,8.39]
[1725806325733,31.85,128.03,127.96,8.39]
[1725806325933,3.1259,127.97,127.92,5.26903651]
[1725806326133,3.1259,127.97,127.94,8.39]
[1725806326539,8.39,128.01,127.94,8.39]
[1725806326540,3.1261,127.96,127.94,8.39]
[1725806330334,3.1263,127.95,127.94,8.39]
[1725806331046,3.1268,127.94,127.92,13.65903651]
[1725806333134,3.1268,127.93,127.92,13.65903651]
[1725806333747,3.1268,127.93,127.92,5.26903651]
[1725806333943,3.1268,127.93,127.92,13.65903651]
[1725806338636,3.1267,127.94,127.92,13.65903651]
[1725806338837,3.1267,127.94,127.93,8.39]
[1725806340545,3.1264,127.95,127.93,8.39]
[1725806340848,3.1264,127.95,127.94,8.39]
[1725806341047,3.1261,127.96,127.94,8.39]
[1725806341250,21.8897421,128.01,127.95,8.39]
[1725806341548,33.1355,128.04,127.98,8.39]
[1725806341747,3.1254,127.99,127.98,8.39]
[1725806341952,3.1254,127.99,127.97,8.39]
[1725806351147,8.39,128.03,127.97,8.39]
[1725806351455,3.1253,128.0,127.98,8.39]
[1725806360269,23.16973026,128.04,127.99,8.39]
[1725806360473,23.16973026,128.04,127.99,12.33780429]
[1725806360474,1.2855,128.04,127.99,12.33780429]
[1725806362258,3.1251,128.01,127.99,8.39]
[1725806367271,3.1251,128.0,127.97,1.3943]
[1725806367473,8.39,128.02,127.96,9.7791]
[1725806367670,31.85,128.03,127.96,9.7791]
[1725806367969,3.1255,127.99,127.96,9.7791]
[1725806369561,8.39,128.02,127.96,1.3891]
[1725806369769,8.39,128.02,127.96,9.7791]
[1725806371667,8.39,128.02,127.96,1.3891]
[1725806371868,31.85,128.01,127.93,2.603]
[1725806372075,31.85,128.01,127.94,8.39]
[1725806372973,8.39,128.01,127.94,8.39]
[1725806374176,3.1261,127.96,127.94,8.39]
[1725806375373,3.1263,127.95,127.93,2.603]
[1725806375573,3.1263,127.95,127.94,8.39]
[1725806375976,3.1263,127.95,127.93,2.603]
[1725806376175,3.1263,127.95,127.94,8.39]
[1725806376483,3.1266,127.94,127.93,1.2833]
[1725806376683,3.1266,127.94,127.93,9.6733]
[1725806381773,1.4018,128.0,127.93,9.6733]
[1725806381970,27.36215228,128.02,127.96,8.39]
[1725806381971,49.2518741,128.02,127.96,8.39]
[1725806382175,8.39,128.03,127.97,8.39]
[1725806382676,24.52061199,128.04,127.99,8.39]
[1725806382872,2.6352,128.04,127.99,8.39]
[1725806383076,24.52061199,128.04,128.0,8.39]
[1725806383276,2.6352,128.04,128.0,8.39]
[1725806383468,1.2855,128.04,128.0,8.39]
[1725806383668,3.1249,128.02,128.0,8.39]
[1725806383878,1.2855,128.04,128.0,8.39]
[1725806384672,34.18288467,128.05,128.0,8.39]
[1725806386177,3.1248,128.02,128.0,8.39]
[1725806394980,3.1248,128.02,128.01,8.39]
[1725806395779,3.1249,128.01,128.0,8.39]
[1725806396690,169.60793994,128.06,128.0,12.20807341]
[1725806396881,173.51901319,128.06,128.01,8.39]
[1725806397078,3.1248,128.02,128.0,8.39]
[1725806397583,3.1248,128.02,128.0,12.2178423]
[1725806399889,3.1248,128.02,128.01,8.39]
[1725806400591,3.1248,128.02,128.01,12.29881403]
[1725806400993,161.21793994,128.06,128.01,12.29881403]
[1725806401588,3.124,128.05,128.01,12.29881403]
[1725806401794,161.21793994,128.06,128.01,12.29881403]
[1725806403192,3.1243,128.04,128.01,12.29881403]
[1725806403985,3.1244,128.03,128.01,3.90881403]
[1725806404192,161.21793994,128.06,128.01,8.39]
[1725806404385,161.21793994,128.06,128.01,12.2040625]
[1725806405091,3.1246,128.03,128.01,12.2040625]
[1725806405293,161.21793994,128.06,128.01,12.2040625]
[1725806405592,3.1245,128.03,128.01,12.2040625]
[1725806405788,3.1245,128.03,128.02,8.39]
[1725806407789,3.1245,128.03,128.01,3.8140625]
[1725806410585,3.1245,128.03,128.02,8.39]
[1725806411798,3.1242,128.04,128.02,8.39]
[1725806412098,3.1242,128.04,128.03,8.39]
[1725806415992,3.1242,128.04,128.01,3.8140625]
[1725806416200,169.60793994,128.06,127.98,1.2834]
[1725806416396,169.60793994,128.06,128.0,8.39]
[1725806416703,169.60793994,128.06,128.0,12.2016259]
[1725806416904,3.1245,128.03,128.0,12.2016259]
[1725806418610,3.1245,128.03,128.0,8.39]
[1725806419011,3.1245,128.03,128.0,12.28999933]
[1725806419309,3.1245,128.03,128.02,8.39]
[1725806420212,3.1247,128.02,128.0,12.33531636]
[1725806421112,3.1249,128.01,128.0,12.33531636]
[1725806422709,3.1247,128.02,128.0,12.33531636]
[1725806423605,3.1249,128.01,128.0,12.33531636]
[1725806426708,8.39,128.04,127.98,1.2834]
[1725806426910,8.39,128.04,127.98,13.63785312]
[1725806427114,3.1254,127.99,127.98,13.63785312]
[1725806427409,3.1254,127.99,127.98,8.39]
[1725806427610,3.1254,127.99,127.9,1.332]
[1725806427611,8.39,128.02,127.95,1.3612]
[1725806427911,3.126,127.97,127.96,12.38179687]
[1725806432721,1.3797,128.03,127.96,12.38179687]
[1725806433014,1.3797,128.03,128.01,8.39]
[1725806434425,3.1246,128.02,128.01,8.39]
[1725806438708,3.1245,128.03,128.01,8.39]
[1725806438913,3.1245,128.03,128.02,8.39]
[1725806440224,3.1242,128.04,128.02,8.39]
[1725806441115,184.67793994,128.06,128.0,1.3899]
[1725806441313,8.39,128.04,127.99,8.39]
[1725806441918,8.39,128.03,127.97,9.7799]
[1725806442331,8.39,128.02,127.97,1.3899]
[1725806443824,8.39,128.02,127.96,3.99179687]
[1725806444121,8.39,128.02,127.95,8.39]
[1725806444327,74.08855792,128.05,127.94,8.39]
[1725806444328,9.765,128.01,127.94,8.39]
[1725806445421,3.1259,127.97,127.94,8.39]
[1725806446213,3.1259,127.97,127.95,8.39]
[1725806446626,3.1259,127.97,127.96,4.00039077]
[1725806448020,3.1259,127.97,127.95,8.39]
[1725806448227,3.1259,127.97,127.96,3.86821545]
[1725806450720,3.1259,127.97,127.95,8.39]
[1725806453429,9.765,128.01,127.95,8.39]
[1725806453929,3.126,127.97,127.95,8.39]
[1725806455026,1.375,128.01,127.96,3.86244169]
[1725806455230,9.765,128.01,127.96,3.86244169]
[1725806455726,3.126,127.97,127.96,3.86244169]